bitfinex/quotes_SOLUSD_20250402
["timestamp","ask_amount","ask_price","bid_price","bid_amount"]
[1743582414923,39.83180149,125.14,125.13,0.5]
[1743582415131,23.02852181,125.21,125.13,0.5]
[1743582415425,39.83180149,125.14,125.13,21.92727179]
[1743582415926,39.81180149,125.14,125.13,21.92727179]
[1743582416812,59.83180149,125.14,125.13,21.92727179]
[1743582417131,39.83180149,125.14,125.13,21.42727179]
[1743582417430,39.83180149,125.14,125.13,21.28511022]
[1743582417626,39.83180149,125.14,125.13,60.08593122]
[1743582417827,47.82280149,125.14,125.13,59.58593122]
[1743582418129,87.65460298,125.14,125.09,136.60945663]
[1743582418326,79.66360298,125.1,125.09,136.7516182]
[1743582418517,79.66360298,125.1,125.09,85.62965663]
[1743582419326,79.66360298,125.1,125.06,0.14216157]
[1743582419508,39.83180149,125.07,125.05,322.02193891]
[1743582419708,7.9586919,125.06,125.05,322.02193891]
[1743582419932,7.9586919,125.06,125.05,322.52193891]
[1743582420139,15.9547919,125.06,125.05,322.02193891]
[1743582420640,15.9547919,125.06,125.05,120.19098515]
[1743582421338,55.78659339,125.06,125.05,120.19098515]
[1743582421549,47.82790149,125.06,125.05,39.71118515]
[1743582421714,47.82790149,125.06,125.05,72.01391008]
[1743582422116,87.65970298,125.06,125.05,111.72509523]
[1743582422342,79.66360298,125.06,125.05,111.72509523]
[1743582422547,79.66360298,125.06,125.01,80.62196157]
[1743582422745,39.83180149,125.02,125.01,80.4798]
[1743582423046,39.83180149,125.02,124.99,80.4798]
[1743582423213,39.83180149,125.0,124.99,80.4798]
[1743582423538,46.32660149,125.04,125.0,0.5]
[1743582423712,46.32660149,125.04,125.0,0.64216157]
[1743582423911,39.83180149,125.01,125.0,0.64216157]
[1743582424410,39.83180149,125.01,125.0,0.14216157]
[1743582424616,39.83180149,125.01,124.99,80.4798]
[1743582424815,59.83180149,125.0,124.99,80.4798]
[1743582425016,59.83180149,125.0,124.99,80.9798]
[1743582426023,67.83180149,125.0,124.99,80.9798]
[1743582426541,67.83180149,125.0,124.99,80.4798]
[1743582426743,67.83180149,125.0,124.99,80.9798]
[1743582427041,67.83180149,125.0,124.99,80.4798]
[1743582428242,67.83180149,125.0,124.99,80.9798]
[1743582428741,28.0,125.0,124.99,80.9798]
[1743582429552,28.0,125.0,124.99,80.4798]
[1743582430768,8.0,125.0,124.99,80.4798]
[1743582430954,67.48614265,125.28,125.2,20.0]
[1743582431253,40.33180149,125.36,125.3,20.0]
[1743582431548,39.83180149,125.31,125.27,0.28432314]
[1743582431742,39.83180149,125.34,125.27,0.14216157]
[1743582431743,39.83180149,125.3,125.27,0.14216157]
[1743582432056,39.83180149,125.3,125.26,0.14216157]
[1743582432057,39.83180149,125.3,125.26,0.28432314]
[1743582432220,39.83180149,125.29,125.25,0.14216157]
[1743582432421,39.83180149,125.34,125.25,9.70216157]
[1743582432632,39.83180149,125.3,125.26,0.14216157]
[1743582432835,39.83180149,125.32,125.27,0.14216157]
[1743582433257,39.8851,125.36,125.28,20.0]
[1743582433258,19.9457,125.34,125.28,20.0]
[1743582433463,39.83180149,125.31,125.28,80.4798]
[1743582433632,39.83180149,125.3,125.28,80.4798]
[1743582433839,59.61531483,125.29,125.28,80.4798]
[1743582434150,20.0,125.26,125.24,9.52]
[1743582434351,59.61531483,125.27,125.25,0.14216157]
[1743582434555,59.61531483,125.28,125.25,0.14216157]
[1743582434761,27.9833,125.26,125.25,0.14216157]
[1743582435936,87.59861483,125.26,125.25,0.14216157]
[1743582436350,87.59861483,125.26,125.25,81.04216157]
[1743582436649,67.59861483,125.26,125.25,81.04216157]
[1743582436836,67.59861483,125.26,125.25,80.9]
[1743582437529,67.59861483,125.26,125.25,40.2833]
[1743582438149,87.55701483,125.26,125.23,0.14216157]
[1743582438352,59.61531483,125.24,125.23,0.14216157]
[1743582439455,67.59991483,125.24,125.23,0.14216157]
[1743582439648,67.59991483,125.24,125.22,20.14216157]
[1743582439839,67.59991483,125.24,125.23,0.14216157]
[1743582440034,7.9846,125.24,125.23,0.14216157]
[1743582440256,67.59991483,125.24,125.22,81.04216157]
[1743582442139,59.61531483,125.24,125.22,81.04216157]
[1743582442334,7.9827,125.27,125.26,0.28432314]
[1743582442535,7.9827,125.27,125.26,90.56432314]
[1743582442732,6.03661862,125.27,125.26,90.28]
[1743582442953,65.65193345,125.27,125.26,40.5333]
[1743582443158,85.60873345,125.27,125.24,9.66432314]
[1743582443362,59.61531483,125.25,125.24,9.66432314]
[1743582444562,19.9535,125.3,125.25,20.0]
[1743582444766,59.61531483,125.27,125.26,0.14216157]
[1743582445058,59.61531483,125.27,125.25,9.46]
[1743582445265,59.61531483,125.26,125.25,9.46]
[1743582445434,19.9535,125.3,125.25,9.46]
[1743582445639,59.61531483,125.26,125.23,58.94066157]
[1743582446150,59.61531483,125.24,125.21,58.94066157]
[1743582446357,59.61531483,125.25,125.21,58.94066157]
[1743582446667,7.984,125.25,125.24,0.14216157]
[1743582446864,119.703,125.31,125.24,0.14216157]
[1743582447066,67.59611483,125.3,125.26,20.0]
[1743582447271,59.61531483,125.29,125.27,0.14216157]
[1743582447642,87.54971483,125.3,125.27,0.14216157]
[1743582448058,59.61531483,125.29,125.27,0.14216157]
[1743582448667,7.9821,125.28,125.27,0.14216157]
[1743582449768,59.61531483,125.29,125.27,0.14216157]
[1743582450364,20.0,125.25,125.19,38.94066157]
[1743582450547,59.61531483,125.2,125.16,38.94066157]
[1743582450749,59.61531483,125.17,125.16,38.94066157]
[1743582450957,59.61531483,125.17,125.16,39.08282314]
[1743582451748,1.5441,125.26,125.22,0.14216157]
[1743582452067,1.5441,125.26,125.21,20.0]
[1743582452068,59.61531483,125.23,125.21,12.47534674]
[1743582452375,59.61531483,125.22,125.19,0.14216157]
[1743582452552,59.61531483,125.2,125.18,3.09534674]
[1743582454562,59.61531483,125.19,125.18,3.23750831]
[1743582454880,0.03,125.2,125.19,0.14216157]
[1743582455057,59.64531483,125.2,125.18,3.09534674]
[1743582455464,59.61531483,125.19,125.17,0.063]
[1743582455794,39.83203978,125.18,125.17,0.063]
[1743582456778,47.82043978,125.18,125.17,0.063]
[1743582458361,39.83203978,125.18,125.17,0.063]
[1743582458775,47.82043978,125.18,125.17,0.063]
[1743582460508,87.89833025,125.24,125.17,0.063]
[1743582460509,1.5503,125.62,125.24,3.09534674]
[1743582460797,1.5503,125.62,125.57,20.0]
[1743582460977,79.4009951,125.76,125.59,0.14216157]
[1743582460978,10.1532333,125.67,125.59,0.14216157]
[1743582461159,49.65239701,125.7,125.58,39.92768317]
[1743582461480,39.83203978,125.64,125.56,39.65791693]
[1743582461685,39.83203978,125.57,125.53,0.14216157]
[1743582461857,39.83203978,125.64,125.52,59.54295498]
[1743582461858,39.83203978,125.55,125.52,0.14216157]
[1743582462184,10.84,125.65,125.52,24.68845434]
[1743582462362,39.83203978,125.56,125.53,0.14216157]
[1743582462552,7.9598,125.63,125.53,0.14216157]
[1743582462553,39.83203978,125.55,125.53,0.14216157]
[1743582463252,39.83203978,125.55,125.52,23.09534674]
[1743582463253,39.83203978,125.55,125.52,3.09534674]
[1743582463671,59.39017019,125.53,125.52,3.23750831]
[1743582463853,59.39017019,125.53,125.52,0.14216157]
[1743582464477,59.39017019,125.53,125.52,30.14216157]
[1743582465574,59.39017019,125.53,125.52,30.0]
[1743582465961,31.72928235,125.53,125.52,30.0]
[1743582466152,31.72928235,125.53,125.51,0.14216157]
[1743582466869,59.39017019,125.52,125.5,20.0]
[1743582467373,59.39017019,125.53,125.5,20.0]
[1743582467557,59.39017019,125.54,125.51,0.14216157]
[1743582467757,59.39017019,125.53,125.5,23.09534674]
[1743582468177,0.02215749,125.51,125.5,23.23750831]
[1743582469073,0.05215749,125.51,125.5,23.23750831]
[1743582469775,59.44232768,125.51,125.5,23.23750831]
[1743582470093,59.41232768,125.51,125.5,23.23750831]
[1743582470462,0.02215749,125.51,125.5,23.23750831]
[1743582470656,0.02215749,125.51,125.5,23.37966988]
[1743582471153,59.41232768,125.51,125.5,23.37966988]
[1743582471353,0.02215749,125.51,125.5,23.37966988]
[1743582471967,0.02215749,125.51,125.5,23.23750831]
[1743582472172,59.41232768,125.51,125.5,23.23750831]
[1743582473370,0.02215749,125.51,125.5,23.23750831]
[1743582473561,59.41232768,125.51,125.5,23.23750831]
[1743582473763,0.02215749,125.51,125.5,23.23750831]
[1743582474078,0.02215749,125.51,125.5,23.37966988]
[1743582475586,59.41232768,125.51,125.5,23.23750831]
[1743582476170,0.02215749,125.51,125.5,23.23750831]
[1743582476369,59.41232768,125.51,125.5,23.23750831]
[1743582476991,66.04080268,125.51,125.5,23.23750831]
[1743582477178,66.04080268,125.51,125.5,23.37966988]
[1743582477179,6.65063249,125.51,125.5,23.37966988]
[1743582477373,6.65063249,125.51,125.5,42.02931874]
[1743582479589,6.65063249,125.51,125.5,72.02931874]
[1743582480490,6.65063249,125.51,125.5,73.62165276]
[1743582480694,6.65063249,125.51,125.5,72.02931874]
[1743582480995,6.65063249,125.51,125.5,53.37966988]
[1743582481292,6.65063249,125.51,125.5,63.67966988]
[1743582482889,59.39017019,125.52,125.51,0.14216157]
[1743582483095,8.45456387,125.51,125.5,63.53750831]
[1743582484604,8.45456387,125.51,125.5,63.43750831]
[1743582484778,67.84473406,125.51,125.5,33.43750831]
[1743582484977,67.84473406,125.51,125.5,33.57966988]
[1743582485595,8.45456387,125.51,125.5,33.57966988]
[1743582486694,67.84473406,125.51,125.5,33.43750831]
[1743582487696,8.45456387,125.51,125.5,33.57966988]
[1743582487876,8.45456387,125.51,125.5,33.43750831]
[1743582488076,67.84473406,125.51,125.5,33.43750831]
[1743582488495,67.84473406,125.51,125.5,23.23750831]
[1743582489703,48.05925121,125.51,125.5,23.23750831]
[1743582489897,8.45456387,125.51,125.5,23.23750831]
[1743582490396,16.42196387,125.51,125.5,23.23750831]
[1743582490902,56.02665121,125.51,125.5,23.23750831]
[1743582491281,16.42196387,125.51,125.5,23.23750831]
[1743582491482,56.02665121,125.51,125.5,23.23750831]
[1743582494495,16.42196387,125.51,125.5,23.23750831]
[1743582494794,56.02665121,125.51,125.5,23.23750831]
[1743582495583,16.42196387,125.51,125.5,23.23750831]
[1743582495906,56.02665121,125.51,125.5,23.23750831]
[1743582496109,16.42196387,125.51,125.5,23.23750831]
[1743582496403,56.02665121,125.51,125.5,23.23750831]
[1743582497407,47.57208734,125.51,125.5,23.23750831]
[1743582497597,39.8199,125.57,125.5,23.09534674]
[1743582497783,39.60468734,125.51,125.5,23.23750831]
[1743582498707,39.60468734,125.51,125.5,3.23750831]
[1743582499490,31.69354834,125.51,125.5,3.23750831]
[1743582502013,39.66094834,125.51,125.5,3.23750831]
[1743582502312,39.66094834,125.51,125.5,5.2289592]
[1743582504184,39.66094834,125.51,125.5,3.23750831]
[1743582504385,39.66094834,125.51,125.5,3.30050831]
[1743582504585,39.66305659,125.51,125.5,3.30050831]
[1743582506516,39.66305659,125.51,125.5,5.59063677]
[1743582507203,39.66305659,125.51,125.5,7.58220327]
[1743582510511,39.66305659,125.51,125.5,5.59063677]
[1743582512016,39.66305659,125.51,125.5,25.73279834]
[1743582515313,39.66305659,125.51,125.5,23.44266988]
[1743582517223,39.8215,125.56,125.51,0.14216157]
[1743582517519,31.69565659,125.52,125.51,0.14216157]
[1743582517723,19.80393943,125.52,125.51,0.14216157]
[1743582518103,39.8215,125.56,125.52,20.0]
[1743582518418,19.80393943,125.53,125.52,20.14216157]
[1743582519121,39.8215,125.56,125.53,0.14216157]
[1743582519313,19.80393943,125.54,125.52,23.09534674]
[1743582519516,19.80393943,125.53,125.52,23.23750831]
[1743582521627,27.77013943,125.53,125.52,23.23750831]
[1743582523441,27.27013943,125.53,125.52,23.23750831]
[1743582527429,47.18563943,125.53,125.5,20.063]
[1743582527635,27.8817,125.53,125.51,30.0]
[1743582527819,27.8817,125.53,125.5,20.063]
[1743582527820,19.80393943,125.52,125.5,20.063]
[1743582528020,19.80393943,125.51,125.5,20.34732314]
[1743582528530,19.80393943,125.51,125.5,50.34732314]
[1743582528739,7.9662,125.53,125.52,20.28432314]
[1743582529038,27.77013943,125.53,125.5,23.15834674]
[1743582529236,19.80393943,125.51,125.5,23.30050831]
[1743582530854,27.8817,125.53,125.5,20.063]
[1743582531133,27.77133943,125.51,125.5,20.20516157]
[1743582537649,27.8772,125.55,125.52,0.14216157]
[1743582537853,19.80393943,125.53,125.52,0.14216157]
[1743582538022,19.80393943,125.53,125.51,20.0]
[1743582538219,19.80393943,125.52,125.51,20.0]
[1743582539644,27.77073943,125.52,125.51,20.0]
[1743582541543,47.57467886,125.52,125.51,20.0]
[1743582541750,27.77073943,125.52,125.51,20.0]
[1743582543447,27.77073943,125.52,125.51,20.063]
[1743582543649,20.6428642,125.52,125.51,20.063]
[1743582549394,7.9668,125.52,125.51,20.063]
[1743582549561,20.6428642,125.52,125.51,20.20516157]
[1743582550382,7.9655,125.54,125.53,20.14216157]
[1743582550788,20.6415642,125.54,125.53,20.14216157]
[1743582551079,7.9655,125.54,125.53,20.14216157]
[1743582551450,27.8733,125.57,125.53,20.14216157]
[1743582551678,12.6760642,125.55,125.53,20.14216157]
[1743582551872,12.6760642,125.54,125.53,20.14216157]
[1743582554289,20.6415642,125.54,125.53,20.14216157]
[1743582555663,12.6760642,125.54,125.53,20.14216157]
[1743582555877,27.8733,125.57,125.53,20.14216157]
[1743582556078,12.6760642,125.54,125.53,20.14216157]
[1743582557759,20.6415642,125.54,125.53,20.14216157]
[1743582561293,12.6760642,125.54,125.53,20.14216157]
[1743582561693,12.6760642,125.54,125.53,20.28432314]
[1743582561885,12.6760642,125.55,125.54,0.14216157]
[1743582563593,12.6760642,125.56,125.54,0.14216157]
[1743582563784,12.6760642,125.55,125.54,0.14216157]
[1743582565997,20.6409642,125.55,125.54,0.14216157]
[1743582566394,7.9649,125.55,125.53,28.62]
[1743582566694,12.6760642,125.54,125.53,28.76216157]
[1743582566896,12.6760642,125.54,125.53,58.76216157]
[1743582567193,20.6409642,125.55,125.53,58.76216157]
[1743582568997,20.6409642,125.55,125.53,58.82516157]
[1743582570882,12.6760642,125.54,125.53,30.063]
[1743582571295,20.6415642,125.54,125.53,30.063]
[1743582571776,20.6415642,125.54,125.53,0.063]
[1743582577003,20.6415642,125.54,125.53,0.20516157]
[1743582577188,20.6415642,125.54,125.53,20.20516157]
[1743582579407,7.9655,125.54,125.53,20.20516157]
[1743582580005,20.6415642,125.54,125.53,0.063]
[1743582588711,0.03,125.55,125.53,0.063]
[1743582588909,12.6760642,125.54,125.53,0.063]
[1743582590815,20.6415642,125.54,125.53,0.063]
[1743582595096,20.6715642,125.54,125.53,0.063]
[1743582602213,7.9955,125.54,125.53,0.063]
[1743582602521,20.6715642,125.54,125.53,0.063]
[1743582609527,29.6249,125.54,125.51,20.063]
[1743582609829,40.5854642,125.54,125.51,20.063]
[1743582611508,7.9955,125.54,125.52,0.14216157]
[1743582612345,7.9955,125.54,125.51,28.083]
[1743582612634,0.03,125.54,125.53,20.14216157]
[1743582613023,12.7060642,125.54,125.51,28.083]
[1743582613224,12.6760642,125.53,125.51,20.063]
[1743582613438,12.6760642,125.52,125.51,20.063]
[1743582614707,7.9668,125.52,125.51,20.063]
[1743582615716,20.6428642,125.52,125.51,20.063]
[1743582617043,0.03,125.54,125.51,20.20516157]
[1743582617241,0.03,125.54,125.53,20.14216157]
[1743582619140,7.9955,125.54,125.53,20.20516157]
[1743582619328,7.9955,125.54,125.53,23.15834674]
[1743582619329,0.03,125.54,125.53,23.15834674]
[1743582619639,0.03,125.54,125.53,23.44266988]
[1743582620613,0.03,125.54,125.53,0.063]
[1743582620834,12.7060642,125.54,125.53,0.063]
[1743582621640,20.6715642,125.54,125.53,0.063]
[1743582623819,7.9955,125.54,125.53,0.063]
[1743582624133,20.6715642,125.54,125.53,0.063]
[1743582626841,20.6715642,125.54,125.53,0.0001]
[1743582627236,7.9955,125.54,125.53,0.0001]
[1743582629027,20.6715642,125.54,125.53,0.0001]
[1743582630635,7.9955,125.54,125.53,0.0001]
[1743582630840,20.6715642,125.54,125.53,0.0001]
[1743582631040,7.9955,125.54,125.53,0.0001]
[1743582631243,20.6715642,125.54,125.53,0.0001]
[1743582632835,7.9955,125.54,125.53,0.0001]
[1743582633641,7.9955,125.54,125.53,20.0001]
[1743582633839,7.9955,125.54,125.53,20.14226157]
[1743582634137,0.03,125.54,125.53,20.14226157]
[1743582638944,12.7060642,125.54,125.53,0.0001]
[1743582640337,0.03,125.54,125.53,0.0001]
[1743582640953,12.7060642,125.54,125.53,0.0001]
[1743582642754,0.03,125.54,125.53,23.37976988]
[1743582642943,0.03,125.54,125.53,31.34596988]
[1743582643132,0.03,125.54,125.53,58.66086648]
[1743582645056,0.03,125.54,125.53,88.66086648]
[1743582645555,0.03,125.54,125.53,79.99561874]
[1743582648466,0.03,125.54,125.53,58.25062314]
[1743582655166,0.03,125.54,125.53,58.00442314]
[1743582663482,0.03,125.54,125.53,50.0001]
[1743582663764,0.03,125.54,125.53,30.0001]
[1743582666975,0.03,125.54,125.53,0.0001]
[1743582668667,12.7060642,125.54,125.53,0.0001]
[1743582670174,0.03,125.54,125.53,0.0001]
[1743582671468,0.03,125.54,125.53,20.28442314]
[1743582672671,0.03,125.54,125.53,20.0001]
[1743582673070,0.03,125.54,125.53,50.0001]
[1743582675462,0.03,125.54,125.53,20.0001]
[1743582676271,0.03,125.54,125.53,0.0001]
[1743582677359,0.03,125.54,125.53,20.28442314]
[1743582678181,0.03,125.54,125.53,20.14226157]
[1743582678688,0.03,125.54,125.53,30.0001]
[1743582684802,0.03,125.54,125.53,0.0001]
[1743582685279,12.7060642,125.54,125.53,0.0001]
[1743582686187,0.03,125.54,125.53,0.0001]
[1743582688613,12.7060642,125.54,125.53,0.0001]
[1743582688915,0.03,125.54,125.53,0.0001]
[1743582690100,12.7060642,125.54,125.53,0.0001]
[1743582690669,0.03,125.54,125.53,0.0001]
[1743582701598,12.7060642,125.54,125.53,0.0001]
[1743582701981,0.03,125.54,125.53,0.0001]
[1743582702312,12.7060642,125.54,125.53,0.0001]
[1743582703287,20.6715642,125.54,125.53,0.0001]
[1743582705101,12.7060642,125.54,125.53,0.0001]
[1743582705705,20.6715642,125.54,125.53,0.0001]
[1743582707109,12.7060642,125.54,125.53,0.0001]
[1743582708405,20.6715642,125.54,125.53,0.0001]
[1743582716532,0.03,125.54,125.53,0.0001]
[1743582719817,12.7060642,125.54,125.53,0.0001]
[1743582720512,0.03,125.54,125.53,0.0001]
[1743582720827,0.03,125.54,125.53,20.14226157]
[1743582721198,0.03,125.54,125.53,28.25062314]
[1743582721505,0.03,125.54,125.53,20.28442314]
[1743582722712,0.03,125.54,125.53,50.28442314]
[1743582723635,0.03,125.54,125.53,58.25062314]
[1743582724019,0.03,125.54,125.53,50.28442314]
[1743582724899,0.03,125.54,125.53,58.25062314]
[1743582732415,0.03,125.54,125.53,81.58827056]
[1743582735252,0.03,125.55,125.54,18.933972]
[1743582735417,0.03,125.55,125.54,56.173972]
[1743582735931,1.3262928,125.56,125.55,38.933972]
[1743582736324,1.3262928,125.56,125.55,72.02931874]
[1743582736528,9.28e-05,125.56,125.55,72.02931874]
[1743582736815,9.28e-05,125.56,125.55,79.99421874]
[1743582737024,12.6760642,125.64,125.61,20.0]
[1743582737348,6.5759,125.65,125.62,7.24]
[1743582737648,80.20783025,125.66,125.63,20.14216157]
[1743582737823,92.88389445,125.66,125.63,20.14216157]
[1743582738027,80.20783025,125.66,125.63,20.14216157]
[1743582738352,12.6760642,125.65,125.63,20.14216157]
[1743582738522,12.6760642,125.65,125.63,20.0]
[1743582739052,12.6760642,125.65,125.62,7.24]
[1743582739649,12.6760642,125.65,125.63,30.0]
[1743582740018,9.5875,125.66,125.63,30.0]
[1743582740241,12.6760642,125.65,125.63,30.0]
[1743582740425,19.6014642,125.64,125.63,22.56160621]
[1743582740629,70.305721,125.64,125.63,20.76940621]
[1743582740826,78.264921,125.64,125.63,20.76940621]
[1743582741439,78.264921,125.64,125.57,27.24]
[1743582741641,12.6760642,125.61,125.59,30.0]
[1743582741824,12.6760642,125.61,125.57,27.24]
[1743582743150,7.9605,125.62,125.57,27.24]
[1743582743638,12.6760642,125.61,125.57,27.24]
[1743582744347,7.9605,125.62,125.57,27.24]
[1743582744738,12.6760642,125.61,125.57,27.24]
[1743582745451,20.6377642,125.61,125.57,27.24]
[1743582746145,7.9617,125.61,125.57,27.24]
[1743582746353,20.6377642,125.61,125.57,27.24]
[1743582746649,12.6760642,125.59,125.57,20.0]
[1743582746949,29.5976,125.61,125.57,20.0]
[1743582747150,12.6760642,125.6,125.57,20.0]
[1743582747646,20.6383642,125.6,125.57,20.0]
[1743582748653,7.9623,125.6,125.57,20.0]
[1743582748829,20.6383642,125.6,125.57,20.0]
[1743582749855,7.9623,125.6,125.57,20.0]
[1743582750068,20.6383642,125.6,125.57,20.0]
[1743582751541,12.6760642,125.6,125.57,20.0]
[1743582752162,7.9914,125.61,125.57,20.0]
[1743582752554,7.9914,125.61,125.58,0.14216157]
[1743582752555,20.6674642,125.61,125.58,0.14216157]
[1743582753371,12.6760642,125.6,125.57,20.0]
[1743582755960,12.6760642,125.59,125.56,7.36216157]
[1743582756138,12.6760642,125.59,125.57,30.0]
[1743582756337,20.6384642,125.59,125.57,30.0]
[1743582757466,20.6384642,125.59,125.56,7.24]
[1743582759755,20.6384642,125.59,125.56,7.303]
[1743582759961,12.6760642,125.59,125.56,7.303]
[1743582760474,20.6386642,125.59,125.56,7.303]
[1743582761289,12.6760642,125.58,125.56,0.063]
[1743582762376,20.6392642,125.58,125.56,0.063]
[1743582763072,12.6760642,125.57,125.56,0.063]
[1743582765295,20.6396642,125.57,125.56,0.063]
[1743582765459,12.6760642,125.57,125.56,0.063]
[1743582766499,20.6396642,125.57,125.56,0.063]
[1743582769295,12.6760642,125.57,125.56,0.063]
[1743582770996,7.9632,125.58,125.56,0.063]
[1743582771301,12.6760642,125.57,125.56,0.063]
[1743582776194,7.9624,125.59,125.56,0.063]
[1743582776380,12.6760642,125.57,125.56,0.063]
[1743582781003,20.6396642,125.57,125.56,0.063]
[1743582788485,20.6396642,125.57,125.53,7.1601]
[1743582788699,12.6760642,125.54,125.53,7.1601]
[1743582790296,7.9655,125.54,125.53,0.0001]
[1743582790495,7.9651,125.55,125.53,0.0001]
[1743582790698,12.6760642,125.54,125.53,0.0001]
[1743582791619,20.6411642,125.55,125.53,0.0001]
[1743582791790,12.6760642,125.55,125.53,0.0001]
[1743582791990,12.6760642,125.54,125.53,0.0001]
[1743582794017,20.6415642,125.54,125.53,0.0001]
[1743582799508,7.9652,125.55,125.53,0.0001]
[1743582799813,12.6760642,125.54,125.53,0.0001]
[1743582801018,20.6415642,125.54,125.53,0.0001]
[1743582801221,40.6415642,125.54,125.53,0.0001]
[1743582802812,27.9655,125.54,125.53,0.0001]
[1743582803013,32.6760642,125.54,125.53,0.0001]
[1743582803212,40.6415642,125.54,125.53,0.0001]
[1743582804726,32.6760642,125.54,125.53,0.0001]
[1743582804917,40.6415642,125.54,125.53,0.0001]
[1743582808115,98.48903025,125.56,125.53,0.0001]
[1743582808116,7.9653,125.55,125.53,0.0001]
[1743582808319,99.21889445,125.56,125.53,0.0001]
[1743582808925,78.57833025,125.56,125.53,0.0001]
[1743582809109,91.25439445,125.56,125.53,0.0001]
[1743582810021,91.25439445,125.56,125.54,0.14216157]
[1743582810416,78.57833025,125.56,125.54,0.14216157]
[1743582810730,91.25439445,125.56,125.54,0.14216157]
[1743582811034,99.24869445,125.56,125.53,20.0001]
[1743582812032,78.60833025,125.56,125.54,0.14216157]
[1743582812326,78.60833025,125.56,125.54,8.24972314]
[1743582812532,0.03,125.61,125.58,0.14216157]
[1743582812731,0.03,125.61,125.6,0.28432314]
[1743582813031,0.03,125.61,125.6,0.14216157]
[1743582814528,0.03,125.61,125.59,27.14]
[1743582814833,12.7060642,125.61,125.59,7.14]
[1743582815016,12.6760642,125.6,125.59,7.14]
[1743582815532,0.03,125.61,125.6,20.14216157]
[1743582819534,0.03,125.61,125.6,20.28432314]
[1743582821539,0.03,125.61,125.6,28.24602314]
[1743582821730,0.03,125.61,125.6,50.28432314]
[1743582822232,0.03,125.61,125.6,68.933972]
[1743582822426,0.03,125.61,125.6,50.28432314]
[1743582822741,0.03,125.61,125.6,68.933972]
[1743582823648,0.03,125.61,125.6,70.671272]
[1743582827223,0.03,125.61,125.6,77.367572]
[1743582827455,0.03,125.61,125.6,80.46291874]
[1743582827736,0.03,125.61,125.6,73.76661874]
[1743582828348,0.03,125.61,125.6,302.94661874]
[1743582829657,0.03,125.61,125.6,310.90831874]
[1743582829853,0.03,125.63,125.62,46.103472]
[1743582830027,0.03,125.63,125.62,79.19881874]
[1743582830433,0.03,125.69,125.68,20.28432314]
[1743582830740,0.03,125.69,125.68,27.46432314]
[1743582831137,0.03,125.69,125.68,35.42102314]
[1743582831342,0.03,125.69,125.68,27.46432314]
[1743582833837,0.03,125.69,125.68,27.32216157]
[1743582834038,0.03,125.69,125.68,0.14216157]
[1743582834359,0.03,125.69,125.68,7.34216157]
[1743582835266,0.03,125.69,125.68,37.34216157]
[1743582835565,12.7060642,125.69,125.68,30.0]
[1743582836065,12.7060642,125.69,125.66,27.34216157]
[1743582836362,12.7060642,125.69,125.67,0.14216157]
[1743582838843,0.03,125.69,125.67,0.14216157]
[1743582839042,0.03,125.69,125.67,0.28432314]
[1743582840382,0.03,125.69,125.68,20.14216157]
[1743582840873,0.03,125.69,125.68,28.24102314]
[1743582842552,0.03,125.69,125.68,58.24102314]
[1743582842747,0.03,125.69,125.68,50.28432314]
[1743582842958,0.03,125.69,125.68,58.24102314]
[1743582846383,0.03,125.69,125.68,76.890672]
[1743582848775,0.03,125.69,125.68,58.24102314]
[1743582851667,0.03,125.69,125.68,76.890672]
[1743582852075,0.03,125.69,125.68,58.24102314]
[1743582855195,0.03,125.69,125.68,79.98601874]
[1743582855389,0.0001,125.69,125.68,88.62391874]
[1743582856269,0.03,125.74,125.73,38.933972]
[1743582856471,0.03,125.74,125.73,79.64931874]
[1743582857398,0.03,125.74,125.73,87.60281874]
[1743582857779,0.03,125.74,125.73,57.60281874]
[1743582859895,0.03,125.74,125.73,31.01966988]
[1743582860098,0.03,125.74,125.73,38.97316988]
[1743582860404,0.03,125.74,125.73,57.62281874]
[1743582860603,0.03,125.74,125.73,38.97316988]
[1743582860905,0.03,125.74,125.73,87.62281874]
[1743582864606,0.03,125.74,125.73,50.28432314]
[1743582864810,0.03,125.74,125.73,30.0]
[1743582865026,12.7060642,125.74,125.73,30.0]